[Event "14th Karen Asrian Memorial 2024"]
[Site "Yerevan"]
[Date "2024.04.25"]
[Round "2.8"]
[White "Ambartsumian, Tyhran"]
[Black "Hayrapetyan, Hovik"]
[Result "0-1"]
[ECO "B51"]
[WhiteElo "2178"]
[BlackElo "2432"]
[Annotator "TA"]
[PlyCount "146"]
[EventDate "2024.04.24"]
[EventType "swiss"]
[EventCountry "ARM"]
[SourceTitle "playchess.com"]
[Source "ChessBase"]
[SourceQuality "1"]
[TimeControl "40/5400+30:1800+30"]

{[%evp 9,146,11,20,16,12,22,19,21,21,14,18,16,14,12,16,12,27,22,7,20,22,21,20,3,43,40,34,32,39,13,12,16,8,12,9,0,8,0,0,0,0,0,0,0,0,0,0,0,0,0,0,0,0,0,0,0,0,0,0,0,0,0,0,0,0,8,4,-23,-8,-8,0,0,0,0,-2,-8,-23,-10,-8,-8,-8,-8,-8,-8,-8,-8,-8,-8,-8,-8,-8,-8,-8,-8,-8,-8,-8,-8,-8,-8,-8,-8,-8,-8,-8,-8,-8,-8,-8,-8,-8,-8,-8,-8,-8,-8,-8,-8,-8,-8,-8,-8,-8,-8,-8,-29962,-29962,-12152,-7360,-29982,-29983,-29983,-29984,-29984,-29985,-29986,-29987,-29986,-29987]} 1. e4 {[%emt 0:00:06]} c5 {[%emt 0:00:06]} 2. Nf3 {[%emt 0:00:47]} d6 {[%emt 0:00:07]} 3. Bb5+ {[%emt 0:00:05]} Nd7 {[%emt 0:00:12]} 4. a4 {[%emt 0:00:05]} Ngf6 {[%emt 0:00:14]} 5. Nc3 {[%emt 0:00:06]} a6 {[%emt 0:01:26]} 6. Be2 {[%emt 0:00:09]} b6 {[%emt 0:00:47]} 7. d4 {[%emt 0:00:04]} cxd4 {[%emt 0:00:06]} 8. Qxd4 {[%emt 0:00:04] The position is equal.} Bb7 {[%emt 0:02:14]} 9. O-O {[%emt 0:00:26]} e6 {[%emt 0:03:19]} 10. Rd1 {[%emt 1:33:38]} Qc7 {[%emt 1:26:59]} 11. Be3 {[%emt 0:00:30]} Be7 {[%emt 0:00:30]} 12. Nd2 {[%emt 0:00:30][%cal Bf3d2,Bd2c4,Bc4e3][%mdl 32] White wants to play Nc4.} O-O {[%emt 0:00:30]} 13. Nc4 {[%emt 0:00:00]} d5 {[%emt 0:00:00]} 14. exd5 {[%emt 0:00:00]} Nxd5 {[%emt 0:00:00]} 15. Nxd5 {[%emt 0:00:00]} Bxd5 {[%emt 0:00:00]} 16. Bf4 {[%emt 0:00:00]} Qc5 {[%emt 0:00:00]} 17. Qxc5 {[%emt 0:00:00]} Bxc5 {[%emt 0:00:00]} 18. Ne3 {[%emt 0:00:00]} Bc6 {[%emt 0:00:00]} 19. c3 {[%emt 0:00:00] Black should prevent b4.} a5 {[%emt 0:00:00]} 20. Bb5 {[%emt 0:00:00]} Bxb5 {[%emt 0:00:00]} 21. axb5 {[%emt 0:00:00]} Nf6 {[%emt 0:00:00]} 22. Bd6 {[%emt 0:00:00]} Rfc8 {[%emt 0:00:00]} 23. Bxc5 {[%emt 0:00:00]} Rxc5 {[%emt 0:00:00]} 24. c4 {[%emt 0:00:00]} Rb8 {[%emt 0:00:00]} 25. b3 {[%emt 0:00:00]} Rc7 {[%emt 0:00:00]} 26. Nc2 {[%emt 0:00:00]} Ne4 {[%emt 0:00:00]} 27. Nd4 {[%emt 0:00:00]} Nc5 {[%emt 0:00:00]} 28. Nc6 {[%emt 0:00:00]} Rbc8 {[%emt 0:00:00]} 29. Rab1 {[%emt 0:00:00]} Kf8 {[%emt 0:00:00]} 30. f3 {[%emt 0:00:00]} Ke8 {[%emt 0:00:00]} 31. Kf2 {[%emt 0:00:00]} Rd7 {[%emt 0:00:00]} 32. Ke2 {[%emt 0:00:00]} Rcc7 {[%emt 0:00:00]} 33. h4 {[%emt 0:00:00]} f6 {[%emt 0:00:00]} 34. Rb2 {[%emt 0:00:00]} Rxd1 {[%emt 0:00:00]} 35. Kxd1 $11 {[%emt 0:00:00][%mdl 4096] Endgame. KRN-KRN} Rd7+ {[%emt 0:00:00]} 36. Kc2 {[%emt 0:00:00]} Kf7 {[%emt 0:00:00]} 37. Ra2 {[%emt 0:00:00]} h5 {[%emt 0:03:20]} 38. Nb8 {[%emt 0:01:28]} Rd4 {[%emt 0:03:23]} 39. Na6 {[%emt 0:01:22]} Nb7 {[%emt 0:00:50]} (39... Rxh4 $2 40. Nxc5 Rh2 41. Kc3 $18) 40. g3 {[%emt 0:00:00]} g5 {[%emt 0:00:00]} 41. Kc3 {[%emt 0:07:39]} Rd1 {[%emt 0:07:01]} 42. Rd2 {[%emt 0:08:52]} Rxd2 {[%emt 0:00:05]} 43. Kxd2 {[%emt 0:00:04]} gxh4 {[%emt 0:00:04]} 44. gxh4 {[%emt 0:00:10] KN-KN} Ke7 {[%emt 0:00:29]} 45. Ke3 {[%emt 0:01:15]} Nd6 {[%emt 0:08:04]} 46. Kd3 {[%emt 0:10:27]} Nf5 {[%emt 0:11:53][%cal Oe7d7]} 47. c5 {[%emt 0:00:38]} Kd7 {[%emt 0:00:31] ...Kc8 is the strong threat.} (47... bxc5 48. b6 Nd6 49. Nxc5 $14) 48. cxb6 {[%emt 0:00:47] [#] White wants to mate with b7.} Kc8 {[%emt 0:00:04]} 49. Nc5 {[%emt 0:05:38]} Nxh4 {[%emt 0:00:12]} 50. b7+ {[%emt 0:00:06]} Kb8 {[%emt 0:04:43]} 51. Nd7+ {[%emt 0:01:11]} Kxb7 {[%emt 0:00:05]} 52. Nxf6 {[%emt 0:00:04]} Nxf3 {[%emt 0:00:04]} 53. Nxh5 {[%emt 0:00:06]} Kb6 {[%emt 0:00:21]} 54. Ke3 {[%emt 0:05:01]} Ng5 {[%emt 0:00:59]} 55. Nf4 {[%emt 0:00:11]} Kxb5 {[%emt 0:00:30] And now ...Kb4 would win.} 56. Nd3 {[%emt 0:00:11]} Nf7 {[%emt 0:01:05]} 57. Kd4 {[%emt 0:00:55]} Nd6 {[%emt 0:01:41]} 58. Ke5 {[%emt 0:00:24]} Nb7 {[%emt 0:00:05]} 59. Kd4 {[%emt 0:00:04]} Nd8 {[%emt 0:01:12]} 60. Ke5 {[%emt 0:02:22]} Kc6 {[%emt 0:00:31]} 61. Nb2 {[%emt 0:01:57]} Kc5 {[%emt 0:00:13] ( -> ...Kb4)} 62. Nd3+ {[%emt 0:00:07]} Kb5 {[%emt 0:00:06]} 63. Kd6 {[%emt 0:00:06]} Nb7+ {[%emt 0:00:05]} 64. Ke5 $1 {[%emt 0:00:47]} Nc5 {[%emt 0:00:06]} 65. Nb2 $1 {[%emt 0:00:04]} Nxb3 {[%emt 0:05:51] Strongly threatening ...Nc5.} (65... Kb4 $5 66. Nc4 $8 Nd7+ (66... Kxb3 67. Nxa5+ Kc3 68. Kd6 $11) (66... a4 67. bxa4 Kxc4 68. a5 $11) 67. Kxe6 Nf8+ (67... Kxb3 68. Nxa5+ Kc3 69. Kxd7 $11) 68. Ke7 Ng6+ (68... Kxb3 69. Nxa5+ Kc3 70. Kxf8 $11) 69. Kd7 Kxb3 70. Nxa5+ Kc3 $11) 66. Kxe6 {[%emt 0:00:09]} Kc5 {[%emt 0:00:12]} (66... Nd2 $5 67. Kd5 $8 Nf1 $11) 67. Kd7 $2 {[%emt 0:00:59][%mdl 8192] [#] Loses the game.} (67. Na4+ $11 Kb4 68. Nb2) 67... Nd2 {[%emt 0:00:30]} 68. Nd3+ {[%emt 0:03:51]} Kc4 {[%emt 0:00:24]} 69. Ne5+ {[%emt 0:00:15]} Kc3 {[%emt 0:00:14] Black mates.} 70. Nc6 {[%emt 0:01:10]} a4 {[%emt 0:00:06]} 71. Na7 {[%emt 0:00:04]} Kc4 {[%emt 0:00:12]} 72. Nc6 {[%emt 0:00:23]} a3 {[%emt 0:00:07]} 73. Ne5+ {[%emt 0:00:04]} Kc3 {[%emt 0:00:05] Weighted Error Value: White=0.02 (flawless) /Black=0.02 (flawless) .  Loses game:     	White=1     	---        Inaccurate:     	White=2     	Black=1      OK:         	White=32    	Black=33     Best:        	White=3     	Black=3      Strong:       	White=2     	---} 0-1

[Event "14th Karen Asrian Memorial 2024"]
[Site "Yerevan"]
[Date "2024.04.26"]
[Round "3.1"]
[White "Petrosyan, Manuel"]
[Black "Nigalidze, Gaioz"]
[Result "1-0"]
[ECO "B51"]
[WhiteElo "2616"]
[BlackElo "2373"]
[Annotator "TA"]
[PlyCount "83"]
[EventDate "2024.04.24"]
[EventType "swiss"]
[EventCountry "ARM"]
[SourceTitle "playchess.com"]
[Source "ChessBase"]
[SourceQuality "1"]
[TimeControl "40/5400+30:1800+30"]

{[%evp 9,83,2,11,6,14,7,16,10,19,20,44,47,104,96,89,94,75,75,69,83,77,95,127,93,79,101,95,91,82,76,74,66,47,77,89,99,96,53,37,38,56,52,116,107,140,139,140,99,86,54,55,50,147,140,145,151,156,142,220,217,209,172,307,308,345,285,318,318,252,237,225,218,675,670,798,798]} 1. e4 {[%emt 0:04:33]} c5 {[%emt 0:00:11]} 2. Nf3 {[%emt 0:01:00]} d6 {[%emt 0:00:18]} 3. Bb5+ {[%emt 0:02:27]} Nd7 {[%emt 0:00:28][%cal Bb8d7,Bd7c5,Bc5e6][%mdl 32]} 4. d4 {[%emt 0:02:02]} cxd4 {[%emt 0:00:08]} 5. Qxd4 {[%emt 0:00:20]} a6 {[%emt 0:00:07]} 6. Be2 {[%emt 0:01:24]} e5 {[%emt 0:00:31]} 7. Qe3 {[%emt 0:01:50]} Ngf6 {[%emt 0:00:10]} 8. c4 {[%emt 0:00:55] The position is equal.} Nc5 {[%emt 0:07:28]} 9. Nc3 {[%emt 0:03:20]} Ng4 {[%emt 0:09:59]} 10. Qd2 {[%emt 0:00:39]} f5 {[%emt 0:01:51]} (10... Bd7 $14) 11. exf5 $16 {[%emt 0:10:51]} Bxf5 {[%emt 0:02:04]} 12. b4 {[%emt 0:09:14]} Ne6 {[%emt 0:05:01]} 13. Bd3 {[%emt 0:00:47]} g6 {[%emt 0:12:00]} 14. Qc2 {[%emt 0:00:07]} Bxd3 {[%emt 0:16:47]} 15. Qxd3 {[%emt 0:00:21]} Bg7 {[%emt 0:00:49][%cal Oe5e4]} 16. O-O {[%emt 0:07:22]} O-O {[%emt 0:05:05]} 17. Qd5 {[%emt 0:03:49]} Qe7 {[%emt 0:03:07]} 18. Ne4 {[%emt 0:07:26][%cal Of3g5]} Nf6 {[%emt 0:14:01]} 19. Qxd6 {[%emt 0:01:50] White is much more active.} Qxd6 {[%emt 0:00:06]} 20. Nxd6 {[%emt 0:00:04][%cal Oc1b2]} e4 {[%emt 0:00:24]} 21. Ng5 {[%emt 0:00:59][%cal Bf3g5,Bg5e6,Be6c7][%mdl 32]} Ne8 {[%emt 0:12:56]} 22. Nxe6 {[%emt 0:05:42]} ({Don't play} 22. Nxb7 $6 Nxg5 23. Bxg5 Rb8 $11) (22. Ndxe4 Bxa1 (22... Nxg5 23. Bxg5 Bxa1 24. Rxa1 $14) 23. Nxe6 Rf5 $16) 22... Bxa1 {[%emt 0:00:23]} 23. Nxe8 {[%emt 0:03:03]} ({Of course not} 23. Nxe4 $6 Rf7 $11) (23. Nxf8 {simplifies} Nxd6 24. Nxh7 Nxc4 25. Ng5) 23... Rfxe8 {[%emt 0:00:25]} 24. Nc7 {[%emt 0:00:04][%csl LRa8,LRe8]} Bc3 $1 {[%emt 0:00:15][%cal Oc3b4]} 25. a3 $36 {[%emt 0:01:49][%cal Oc1g5][%mdl 2048] White has good play.} a5 {[%emt 0:02:17]} 26. bxa5 {[%emt 0:00:11]} Kf7 {[%emt 0:03:05]} 27. Nxa8 {[%emt 0:09:39]} Rxa8 {[%emt 0:00:29][%mdl 4096] Endgame. KRB-KRB} 28. Rd1 {[%emt 0:00:05]} Ke6 {[%emt 0:01:19]} 29. g4 {[%emt 0:01:59]} Rxa5 {[%emt 0:00:39]} 30. Rd8 {[%emt 0:00:46]} Ke5 {[%emt 0:02:35]} (30... Be5 $14) 31. Rd7 {[%emt 0:01:32]} h5 {[%emt 0:00:08]} 32. gxh5 {[%emt 0:01:50]} gxh5 {[%emt 0:00:05]} 33. Rxb7 {[%emt 0:00:23]} Kd4 {[%emt 0:00:27] [#]} (33... Ra4 $16 {was worth a try.} 34. Rb5+ Kd4) 34. Rc7 $1 $18 {[%emt 0:03:06]} Kd3 {[%emt 0:00:21]} 35. c5 {[%emt 0:00:24][%cal Bc4c5,Bc5c6,Bc6c7][%mdl 32]} Kc2 {[%emt 0:01:24]} (35... Kc4 {might work better.} 36. c6 Kd5) 36. Bf4 {[%emt 0:04:55]} Rxa3 {[%emt 0:00:24]} 37. Rd7 {[%emt 0:00:55] Prevents Bd2. Black must now prevent c6.} Ra6 {[%emt 0:00:40]} 38. Rd6 {[%emt 0:01:43] Dodges Rc6} Ra4 {[%emt 0:00:26]} 39. c6 {[%emt 0:05:32] [#] c7 would now be deadly.} Rc4 {[%emt 0:00:05]} 40. Rh6 {[%emt 0:00:00][%cal Oc6c7] Strongly threatening c7!} Bg7 $2 {[%emt 0:00:00]} (40... Bd2) 41. Re6 {[%emt 0:06:01]} (41. Rxh5 Rxc6 42. h4 Bd4 $16) 41... Bd4 {[%emt 0:08:47]} 42. c7 {[%emt 0:01:11] Weighted Error Value: White=0.08 (flawless) /Black=0.34.  Mistake:       	---       	Black=6      Inaccurate:     	White=2     	Black=2      OK:         	White=22    	Black=12     Best:        	White=1     	Black=2      Strong:       	---       	Black=1} ({Not} 42. Rxe4 Bxf2+ 43. Kxf2 Rxe4 $11) 1-0

[Event "14th Karen Asrian Memorial 2024"]
[Site "Yerevan"]
[Date "2024.04.26"]
[Round "3.2"]
[White "Sahakyan, Aleks"]
[Black "Ohanyan, Emin"]
[Result "0-1"]
[ECO "A14"]
[WhiteElo "2339"]
[BlackElo "2488"]
[Annotator "TA"]
[PlyCount "78"]
[EventDate "2024.04.24"]
[EventType "swiss"]
[EventCountry "ARM"]
[SourceTitle "playchess.com"]
[Source "ChessBase"]
[SourceQuality "1"]
[TimeControl "40/5400+30:1800+30"]

{[%evp 12,78,11,14,18,15,13,0,18,-41,27,7,25,-24,-4,-77,-67,-54,-19,-24,-39,-43,-42,-98,-56,-45,-36,-29,-33,-60,-66,-112,-97,-109,-108,-122,-111,-112,-109,-104,-97,-120,-126,-270,-175,-162,-150,-169,-175,-171,-172,-179,-187,-261,-261,-258,-257,-272,-242,-311,-316,-365,-365,-333,-339,-331,-333,-344,-345]} 1. c4 {[%emt 0:00:02]} e6 {[%emt 0:10:38]} 2. g3 {[%emt 0:00:06]} d5 {[%emt 0:00:03]} 3. Bg2 {[%emt 0:00:05]} Nf6 {[%emt 0:00:07]} 4. Nf3 {[%emt 0:00:04][%cal Bg1f3,Bf3e5,Be5d3][%mdl 32]} Be7 {[%emt 0:00:03]} 5. O-O {[%emt 0:00:08]} O-O {[%emt 0:00:04]} 6. b3 {[%emt 0:00:22]} d4 {[%emt 0:00:02]} 7. e3 {[%emt 0:00:06]} c5 {[%emt 0:00:02]} 8. Ne5 {[%emt 0:00:06] Inhibits Nc6.} Qc7 {[%emt 0:00:06]} 9. f4 {[%emt 0:00:05]} Nbd7 {[%emt 0:00:10] The position is equal.} 10. Na3 {[%emt 0:01:09]} (10. Nd3 $11) 10... a6 {[%emt 0:12:25]} (10... Nxe5 $15 11. Nb5 Qb8 12. fxe5 Qxe5 13. exd4 cxd4) 11. Nd3 $11 {[%emt 0:00:05]} e5 {[%emt 0:00:25]} 12. g4 {[%emt 0:00:12]} (12. Bb2 {feels stronger.}) 12... exf4 $1 {[%emt 0:09:04]} 13. exf4 {[%emt 0:09:17]} (13. g5 $11 {remains equal.}) 13... h6 {[%emt 0:06:26]} (13... g6 $5) 14. Nc2 {[%emt 0:04:49]} Rb8 {[%emt 0:03:54]} 15. Ba3 {[%emt 0:20:59]} g6 {[%emt 0:13:03]} 16. Qf3 {[%emt 0:07:43]} Bd6 {[%emt 0:02:29]} 17. Rac1 {[%emt 0:22:18]} (17. b4 $15) 17... b6 {[%emt 0:01:29]} 18. Qc6 {[%emt 0:00:43][%cal Oc2d4]} Bb7 {[%emt 0:01:13]} 19. Qxc7 {[%emt 0:00:09]} Bxc7 {[%emt 0:00:04]} 20. Bxb7 {[%emt 0:06:19]} Rxb7 {[%emt 0:00:03]} 21. Rce1 {[%emt 0:02:12]} (21. h3 $15 {is superior.}) 21... Nxg4 $17 {[%emt 0:02:38]} 22. b4 {[%emt 0:02:10]} Bd6 $36 {[%emt 0:13:33][%mdl 2048] Black is in control.} 23. bxc5 {[%emt 0:00:31]} Nxc5 {[%emt 0:00:46]} ({But not} 23... bxc5 $6 24. Nxd4 Rc7 25. Nb3 $11) 24. Ne5 {[%emt 0:00:22]} Bxe5 {[%emt 0:03:52]} 25. fxe5 {[%emt 0:00:17][%cal Oh2h3] Black must now prevent h3!} Re8 {[%emt 0:01:11]} 26. Nxd4 {[%emt 0:05:22]} Nxe5 {[%emt 0:01:09] Threatens to win with ...Rd7. A dynamic duo of knights.} 27. Kh1 {[%emt 0:00:31] This costs White the game.} (27. Re3 $17 Rbe7 28. Rfe1) 27... Rbe7 {[%emt 0:00:57]} 28. Nb3 {[%emt 0:04:37]} Nxc4 {[%emt 0:02:31]} 29. Rxe7 {[%emt 0:00:51]} Rxe7 {[%emt 0:00:01]} 30. Bxc5 {[%emt 0:00:29]} bxc5 $19 {[%emt 0:00:04][%mdl 4096] Endgame. KRN-KRN} 31. Rc1 {[%emt 0:00:02]} Ne5 {[%emt 0:00:49]} 32. Rxc5 {[%emt 0:00:40] [#]} (32. Nxc5 $142 Nf3 33. Rc3 Re1+ (33... Nxd2 $2 34. Nxa6 Re1+ 35. Kg2 $19) 34. Kg2 Nxd2 35. Rd3 Re2+ 36. Kg1) 32... Nf3 $1 {[%emt 0:00:07] ( -> ...Re2)} 33. Kg2 {[%emt 0:01:11] [#]} Nxd2 {[%emt 0:00:23][%mdl 512]} 34. Nd4 {[%emt 0:00:06]} (34. Nxd2 Re2+) 34... Rd7 {[%emt 0:06:13]} 35. Nc2 {[%emt 0:00:48]} Rb7 {[%emt 0:03:29]} 36. Rd5 {[%emt 0:00:55]} Ne4 {[%emt 0:00:25]} 37. a3 {[%emt 0:01:28]} Rb2 {[%emt 0:00:25] Black has a decisive advantage.} 38. Rd8+ {[%emt 0:00:01]} Kg7 {[%emt 0:00:09]} 39. Rc8 {[%emt 0:00:01]} Nd6 {[%emt 0:00:38] Weighted Error Value: White=0.24 (precise) /Black=0.11 (very precise) .  Mistake:       	White=7     	Black=1      Inaccurate:     	White=1     	Black=3      OK:         	White=9     	Black=11     Best:        	White=3     	Black=3      Strong:       	---       	Black=2      Brilliant:      	---       	Black=1} 0-1

[Event "14th Karen Asrian Memorial 2024"]
[Site "Yerevan"]
[Date "2024.04.26"]
[Round "3.3"]
[White "Davtyan, Artur"]
[Black "Hayrapetyan, Edgar"]
[Result "1-0"]
[ECO "B42"]
[WhiteElo "2474"]
[BlackElo "2340"]
[Annotator "TA"]
[PlyCount "67"]
[EventDate "2024.04.24"]
[EventType "swiss"]
[EventCountry "ARM"]
[SourceTitle "playchess.com"]
[Source "ChessBase"]
[SourceQuality "1"]
[TimeControl "40/5400+30:1800+30"]

{[%evp 12,67,24,34,43,15,26,-8,34,27,39,35,25,26,41,31,42,36,51,22,16,18,23,-9,0,-4,77,80,93,70,66,67,70,57,63,71,67,72,64,67,281,258,250,188,202,186,531,182,525,521,528,498,711,701,712,705,29984,29985]} 1. e4 {[%emt 0:07:12]} c5 {[%emt 0:00:05]} 2. Nf3 {[%emt 0:00:04]} e6 {[%emt 0:00:07]} 3. d4 {[%emt 0:00:04]} cxd4 {[%emt 0:00:05]} 4. Nxd4 {[%emt 0:00:04]} a6 {[%emt 0:00:06]} 5. Bd3 {[%emt 0:00:10]} Bc5 {[%emt 0:00:07]} 6. Nb3 {[%emt 0:00:05]} Ba7 {[%emt 0:00:05]} 7. Qe2 {[%emt 0:00:22]} Ne7 {[%emt 0:00:05]} 8. h4 {[%emt 0:18:47]} Nbc6 {[%emt 0:06:00]} 9. h5 {[%emt 0:02:48]} h6 {[%emt 0:00:05] The position is equal.} 10. Qg4 {[%emt 0:00:14]} Rg8 {[%emt 0:17:52]} 11. Qg3 {[%emt 0:00:19]} d6 {[%emt 0:09:04]} 12. Nc3 {[%emt 0:02:51]} Qc7 {[%emt 0:06:18]} 13. Be3 {[%emt 0:12:12]} Bxe3 {[%emt 0:01:07]} 14. Qxe3 {[%emt 0:00:13]} e5 {[%emt 0:00:27]} 15. Nd5 {[%emt 0:21:24]} Nxd5 {[%emt 0:08:45]} 16. exd5 {[%emt 0:00:03]} Nb4 {[%emt 0:04:06][%csl LRc2,LRd5]} 17. Qe4 {[%emt 0:00:26]} Nxd3+ {[%emt 0:00:34]} 18. cxd3 {[%emt 0:00:15]} Qe7 {[%emt 0:02:58]} (18... f5 $11 {remains equal.} 19. Qf3 Rf8) 19. Rc1 $16 {[%emt 0:00:40]} g6 {[%emt 0:00:06]} 20. hxg6 {[%emt 0:02:45]} Rxg6 {[%emt 0:00:04]} 21. Qe3 {[%emt 0:05:33]} Qf6 {[%emt 0:01:12]} 22. Rc7 {[%emt 0:14:28]} Kf8 {[%emt 0:06:10][%cal Of8g7]} 23. Nd2 {[%emt 0:00:41]} Qd8 {[%emt 0:07:22]} 24. Rc4 {[%emt 0:01:07] White is much more active.} Kg7 {[%emt 0:02:13][%cal Oc8f5]} 25. Rch4 $36 {[%emt 0:00:01][%mdl 2048] White has some pressure.} Qh8 {[%emt 0:05:33] A mistake that costs the game.} (25... Qg5 $14) 26. Nc4 $18 {[%emt 0:01:37][%cal Oc4d6] [#] Black must now prevent Nxd6!} Bd7 {[%emt 0:01:04]} 27. g4 {[%emt 0:02:58]} Bxg4 {[%emt 0:09:15]} 28. Nxd6 {[%emt 0:03:17]} h5 {[%emt 0:06:58] [#]} (28... Rxd6 {is a better chance.} 29. Rxg4+ (29. Qxe5+ Kh7 $18) 29... Kf8) 29. Nf5+ $2 {[%emt 0:03:34]} (29. Nxb7 Qh6 $14) (29. f3 $1 {[%mdl 512]} Qd8 30. Ne4 (30. Qxe5+ Kf8 $18) (30. Nxb7 Qb6 $14)) 29... Kf6 $2 {[%emt 0:00:27]} (29... Bxf5 {is tougher.} 30. Rxh5 Qb8 (30... Qc8 $2 31. Qxe5+ Rf6 32. Qg3+ Rg6 33. Qf4 $18) 31. Rxf5 Qc7 32. Qxe5+ (32. Rxe5 Rc8 $16) 32... Qxe5+ 33. Rxe5 Rd8) 30. Ng3 {[%emt 0:00:03]} Qf8 {[%emt 0:03:11]} 31. a3 {[%emt 0:00:25] Dodges Qb4+} Ke7 {[%emt 0:03:26]} (31... Rd8 $142 32. f3 (32. Nxh5+ Bxh5 33. Rxh5 Rxd5 $16) 32... Qh6 33. Qxh6 (33. Nxh5+ Bxh5 34. f4 exf4 $18) 33... Rxh6 34. fxg4 Rxd5) 32. f3 {[%emt 0:00:37]} ({Weaker is} 32. Qxe5+ Kd7 33. Kd2 (33. Nxh5 $2 {loses.} Re8 $19) 33... Re8 $14) 32... Bd7 {[%emt 0:00:19]} 33. Rxh5 {[%emt 0:01:01]} Qg7 {[%emt 0:01:01]} 34. Qc5+ {[%emt 0:00:24] Weighted Error Value: White=0.41/Black=0.79.  Loses game:     	---       	Black=1      Mistake:       	White=1     	Black=4      Inaccurate:     	White=4     	Black=1      OK:         	White=8     	Black=6      Best:        	White=3     	Black=1} (34. Qxe5+ Qxe5+ 35. Rxe5+ Kf6 $19) 1-0

[Event "14th Karen Asrian Memorial 2024"]
[Site "Yerevan"]
[Date "2024.04.26"]
[Round "3.4"]
[White "Shahinyan, David"]
[Black "Babujian, Levon"]
[Result "1-0"]
[ECO "B22"]
[WhiteElo "2441"]
[BlackElo "2338"]
[Annotator "TA"]
[PlyCount "75"]
[EventDate "2024.04.24"]
[EventType "swiss"]
[EventCountry "ARM"]
[SourceTitle "playchess.com"]
[Source "ChessBase"]
[SourceQuality "1"]
[TimeControl "40/5400+30:1800+30"]

{[%evp 13,75,56,56,39,57,56,47,21,20,14,27,15,50,0,0,15,5,0,0,0,0,0,14,22,20,18,92,91,139,146,132,114,101,102,108,94,143,135,317,322,398,358,446,446,566,566,560,555,542,462,586,584,612,474,468,468,462,462,656,667,665,660,631,622]} 1. e4 {[%emt 0:00:02]} c5 {[%emt 0:03:58]} 2. c3 {[%emt 0:00:36]} d5 {[%emt 0:00:16]} 3. exd5 {[%emt 0:00:12]} Qxd5 {[%emt 0:00:05]} 4. d4 {[%emt 0:00:20]} Nc6 {[%emt 0:00:14]} 5. Nf3 {[%emt 0:00:15]} e6 {[%emt 0:00:10]} 6. Na3 {[%emt 0:01:01]} cxd4 {[%emt 0:01:00]} 7. Nb5 {[%emt 0:01:05]} Bd6 $1 {[%emt 0:07:48] [#]} 8. Bc4 $1 {[%emt 0:13:27]} Qe4+ {[%emt 0:00:57] [#]} 9. Be3 $1 {[%emt 0:01:48]} Bb8 {[%emt 0:02:29]} 10. cxd4 {[%emt 0:05:59] White is slightly better.} (10. Nfxd4 Qxg2 11. Rf1 Nge7 (11... Bxh2 12. Nxc6 Qxc6 13. Qg4 $11) (11... Qxh2 12. Qd2 $11) 12. Nxc6 Qxc6 $15) (10. Nbxd4 {simplifies} Nxd4 11. Qxd4 Qxd4 12. Bxd4 Nf6 13. Bb5+) 10... Nf6 {[%emt 0:00:06]} 11. O-O {[%emt 0:11:40]} O-O {[%emt 0:03:06]} 12. Re1 {[%emt 0:07:56]} Qf5 {[%emt 0:06:09]} 13. Bd3 {[%emt 0:13:23]} (13. Bg5 $14) 13... Qh5 $11 {[%emt 0:02:32]} 14. h3 {[%emt 0:00:14]} Rd8 {[%emt 0:03:55]} 15. Bg5 {[%emt 0:07:08]} a6 {[%emt 0:03:58]} 16. Bxf6 {[%emt 0:05:21]} gxf6 {[%emt 0:00:45]} 17. Nc3 {[%emt 0:00:01][%cal Bb5c3,Bc3d5,Bd5b6][%mdl 32]} f5 {[%emt 0:03:57] [#] Wards off Re4} 18. d5 $1 {[%emt 0:01:14]} exd5 {[%emt 0:03:13]} 19. Qb3 {[%emt 0:02:14]} d4 {[%emt 0:08:41]} (19... Qg6 $11) 20. Nd5 $16 {[%emt 0:01:33] Nf6+ would now be deadly.} Kh8 {[%emt 0:07:02] [#]} (20... Qh6 $142) 21. Nb6 $1 $36 {[%emt 0:04:32][%mdl 2048] Keeping Black busy. A dynamic duo of knights.} Rg8 {[%emt 0:08:51][%cal Oh5f3]} 22. Bf1 {[%emt 0:01:08] White has more active pieces.} Ra7 {[%emt 0:00:54]} 23. Nxc8 {[%emt 0:00:05]} Rxc8 {[%emt 0:00:05]} 24. Rac1 {[%emt 0:00:01][%cal Ba1c1,Bc1c5,Bc5f5,Bf5h5,Bh5f5][%mdl 32]} Rd8 {[%emt 0:10:58]} ({Better is} 24... Rg8) 25. Rc5 {[%emt 0:09:10]} Bd6 $2 {[%emt 0:02:32] [#] Loses the game.} (25... Rg8 $16 26. Qd3 Qg6 27. Rxf5 (27. Qxf5 Rd8 $16) 27... b5) 26. g4 $1 $18 {[%emt 0:02:00][%mdl 512]} Rg8 {[%emt 0:06:05]} (26... Qg6 27. Rxf5) 27. Bg2 {[%emt 0:02:58][%csl LRf5,LRh5]} Qg6 {[%emt 0:04:28]} 28. Rxf5 {[%emt 0:00:04] White is clearly winning.} b5 {[%emt 0:04:35]} 29. Nh4 {[%emt 0:02:32][%csl LRc6,LRg6]} Qh6 {[%emt 0:00:01]} 30. Rh5 {[%emt 0:00:59]} (30. Rxf7 Na5 31. Qd5 (31. Nf5 Qd2 $11) 31... Rxf7 32. Qxf7 Qxh4 $11) 30... Qd2 {[%emt 0:00:04]} 31. Rd1 {[%emt 0:01:43]} Qf4 {[%emt 0:00:05]} 32. Qc2 {[%emt 0:00:19][%csl Gc2][%cal Rh5h7]} f5 {[%emt 0:01:37]} 33. Rxf5 {[%emt 0:01:20]} Qh2+ {[%emt 0:02:31]} 34. Kf1 {[%emt 0:00:01]} Ne5 {[%emt 0:00:11] Wards off Nf3} 35. Qe4 {[%emt 0:01:16]} (35. Rxd4 Rc7 36. Qd2 Be7) 35... d3 {[%emt 0:03:01]} (35... Rag7 $142 36. Rh5 (36. Rxd4 Be7 $18) 36... Rf8 37. Qxd4 (37. Rxd4 Be7 $18) 37... Bb8) 36. Qd4 {[%emt 0:00:31][%csl LRa7,LRd3,LRd6]} Rd7 {[%emt 0:01:06]} 37. Nf3 {[%emt 0:00:11]} Bb8 {[%emt 0:00:55]} 38. Qxd7 {[%emt 0:00:30] Weighted Error Value: White=0.16 (very precise) /Black=0.38.  Loses game:     	---       	Black=1      Mistake:       	White=1     	Black=4      Inaccurate:     	White=1     	Black=1      OK:         	White=13    	Black=13     Best:        	White=3     	Black=1      Strong:       	White=1     	---        Brilliant:      	White=1     	---} ({Stronger than} 38. Rxe5 Rxd4 39. Nxh2 Bxe5 $11) 1-0